fUST/lending_fUST_20250302
["ID","MTS","AMOUNT","RATE_DAILY","PERIOD"]
[354968119,1740849768709,-304.25214242,0.00025751,2]
[354968120,1740849768718,-500.0,0.00025751,2]
[354968121,1740849768728,-500.0,0.00025751,2]
[354968122,1740849768738,-152.01785758,0.00025751,2]
[354968123,1740849768754,-500.0,0.00025751,2]
[354968124,1740849768766,-514.43,0.00025751,2]
[354968125,1740849768778,-500.0,0.00025751,2]
[354968126,1740849768791,-500.0,0.00025751,2]
[354968127,1740849768806,-1109.92,0.00025751,2]
[354968128,1740849768818,-618.06,0.00025751,2]
[354968129,1740849768833,-503.01725698,0.00025751,2]
[354968130,1740849768850,-448.85488544,0.00025751,2]
[354968131,1740849768860,-51.14511456,0.00025751,2]
[354968132,1740849768876,-485.30488544,0.00025751,2]
[354968133,1740849768887,-441.44664418,0.00025751,2]
[354968134,1740849768897,-56.87847038,0.00025751,2]
[354968135,1740849768910,-140.60355374,0.00025751,2]
[354968141,1740850033120,-229.77462893,0.00024657,2]
[354968142,1740850039099,-270.22537107,0.00024657,2]
[354968143,1740850039123,-300.0,0.0002481,2]
[354968144,1740850039146,-464.68439056,0.00024812,2]
[354968146,1740850054094,-1034.84507025,0.00024812,2]
[354968148,1740850079543,327.65485011,0.00016,2]
[354968154,1740850157119,-300.0,0.0002481,2]
[354968155,1740850157145,-23400.47053919,0.00024812,2]
[354968156,1740850157169,-599.45368427,0.0002537,2]
[354968157,1740850157191,-500.0,0.00025477,2]
[354968158,1740850157216,-100.61668188,0.00025477,2]
[354968159,1740850174278,-399.38331812,0.00025477,2]
[354968160,1740850174300,-110.52567556,0.00025649,2]
[354968164,1740850195900,399.63578951,0.00023651,2]
[354968192,1740850232318,-87.35266968,0.00025649,2]
[354968193,1740850232329,-1964.53082833,0.0002565,2]
[354968194,1740850232339,-300.0,0.00025748,2]
[354968195,1740850232349,-8417.99,0.00025749,2]
[354968196,1740850232360,-2231.37,0.00025749,2]
[354968197,1740850232369,-1000.0,0.00025749,5]
[354968198,1740850232379,-1265.28,0.00025749,2]
[354968199,1740850232389,-745.33,0.00025749,2]
[354968200,1740850232399,-162.49673379,0.00025749,2]
[354968201,1740850232412,-625.66326621,0.00025749,2]
[354968202,1740850232423,-500.0,0.00025749,2]
[354968203,1740850232433,-500.0,0.00025749,2]
[354968204,1740850232448,-501.67719612,0.00025749,2]
[354968205,1740850232458,-500.0,0.00025749,2]
[354968206,1740850232468,-122.65953767,0.00025749,2]
[354968207,1740850232489,-377.34046233,0.00025749,2]
[354968208,1740850232500,-500.0,0.00025749,2]
[354968209,1740850232510,-500.0,0.00025749,2]
[354968210,1740850232522,-500.0,0.00025749,2]
[354968211,1740850232533,-287.89618967,0.00025749,2]
[354968212,1740850232543,-246.05943754,0.00025749,2]
[354968213,1740850232553,-500.0,0.0002575,2]
[354968214,1740850232563,-500.0,0.0002575,2]
[354968215,1740850232573,-961.87,0.0002575,2]
[354968216,1740850232583,-500.0,0.0002575,2]
[354968217,1740850232593,-581.91,0.0002575,2]
[354968218,1740850232603,-500.0,0.0002575,2]
[354968219,1740850232613,-500.0,0.0002575,2]
[354968220,1740850232628,-500.0,0.0002575,2]
[354968221,1740850232638,-500.0,0.0002575,2]
[354968222,1740850232647,-828.64,0.0002575,2]
[354968223,1740850232657,-295.08337193,0.0002575,2]
[354968224,1740850232668,-500.0,0.0002575,2]
[354968225,1740850232678,-1057.51,0.0002575,2]
[354968226,1740850232688,-500.0,0.0002575,2]
[354968227,1740850232700,-500.0,0.0002575,2]
[354968228,1740850232710,-500.0,0.0002575,2]
[354968229,1740850232719,-1728.36,0.0002575,2]
[354968230,1740850232729,-1174.44,0.0002575,2]
[354968231,1740850232739,-677.44,0.0002575,2]
[354968232,1740850232749,-1072.33,0.0002575,2]
[354968233,1740850232760,-1584.23,0.0002575,2]
[354968234,1740850232770,-500.0,0.0002575,2]
[354968235,1740850232780,-883.97928146,0.0002575,2]
[354968239,1740850238486,-3225.88,0.00025749,2]
[354968240,1740850238498,-500.0,0.00025749,2]
[354968241,1740850238510,-1612.95071854,0.0002575,2]
[354968242,1740850238524,-564.13,0.0002575,2]
[354968243,1740850238535,-1529.5,0.0002575,2]
[354968244,1740850238547,-500.0,0.0002575,2]
[354968245,1740850238559,-1626.72,0.0002575,2]
[354968246,1740850238570,-948.97,0.0002575,2]
[354968247,1740850238582,-1821.85,0.0002575,2]
[354968248,1740850238593,-500.0,0.0002575,2]
[354968249,1740850238606,-500.0,0.0002575,2]
[354968250,1740850238617,-2334.43,0.0002575,2]
[354968251,1740850238629,-500.0,0.0002575,2]
[354968252,1740850238641,-500.0,0.0002575,2]
[354968253,1740850238652,-1004.85,0.0002575,2]
[354968254,1740850238664,-1198.71,0.0002575,2]
[354968255,1740850238675,-791.77,0.0002575,2]
[354968256,1740850238687,-1185.64,0.0002575,2]
[354968257,1740850238699,-500.0,0.0002575,2]
[354968258,1740850238712,-1301.17,0.0002575,2]
[354968259,1740850238723,-500.0,0.0002575,2]
[354968260,1740850238735,-500.0,0.0002575,2]
[354968261,1740850238749,-500.0,0.0002575,2]
[354968262,1740850238761,-500.0,0.0002575,2]
[354968263,1740850238772,-500.0,0.0002575,2]
[354968264,1740850238783,-566.88,0.0002575,2]
[354968265,1740850238795,-993.18,0.0002575,2]
[354968266,1740850238807,-1065.31,0.0002575,2]
[354968267,1740850238818,-540.76,0.0002575,2]
[354968268,1740850238830,-913.99,0.0002575,2]
[354968269,1740850238842,-500.0,0.0002575,2]
[354968270,1740850238853,-1473.06,0.0002575,2]
[354968271,1740850238865,-500.0,0.0002575,2]
[354968272,1740850238875,-500.0,0.0002575,2]
[354968273,1740850238887,-495.54,0.0002575,2]
[354968274,1740850238898,-500.0,0.0002575,2]
[354968275,1740850238910,-1180.32,0.0002575,2]
[354968276,1740850238921,-654.74,0.0002575,2]
[354968277,1740850238933,-500.0,0.0002575,2]
[354968278,1740850238944,-12406.79,0.0002575,2]
[354968279,1740850238957,-1082.74,0.0002575,2]
[354968280,1740850238968,-27493.04409755,0.0002575,2]
[354968281,1740850238983,-9237.94590245,0.0002575,2]
[354968282,1740850238993,-500.0,0.0002575,2]
[354968283,1740850239005,-500.0,0.0002575,2]
[354968284,1740850239017,-500.0,0.0002575,2]
[354968285,1740850239028,-1114.28,0.0002575,2]
[354968286,1740850239039,-500.0,0.0002575,2]
[354968287,1740850239051,-6655.6,0.0002575,2]
[354968288,1740850239062,-500.0,0.0002575,2]
[354968289,1740850239074,-1832.87,0.0002575,2]
[354968290,1740850239085,-613.87,0.0002575,2]
[354968291,1740850239096,-554.85,0.0002575,2]
[354968292,1740850239108,-500.0,0.0002575,2]
[354968293,1740850239120,-4058.98,0.0002575,2]
[354968294,1740850239131,-1511.24,0.0002575,2]
[354968295,1740850239143,-500.0,0.0002575,2]
[354968296,1740850239154,-500.0,0.0002575,2]
[354968297,1740850239166,-979.21,0.0002575,2]
[354968298,1740850239177,-1702.6,0.0002575,2]
[354968299,1740850239189,-500.0,0.0002575,2]
[354968300,1740850239200,-755.01,0.0002575,2]
[354968301,1740850239212,-1317.18,0.0002575,2]
[354968302,1740850239223,-765.47,0.0002575,2]
[354968303,1740850239234,-500.0,0.0002575,2]
[354968304,1740850239246,-500.0,0.0002575,2]
[354968305,1740850239257,-4961.4,0.0002575,2]
[354968306,1740850239268,-500.0,0.0002575,2]
[354968307,1740850239279,-500.0,0.0002575,2]
[354968308,1740850239290,-500.0,0.0002575,2]
[354968309,1740850239301,-500.0,0.0002575,2]
[354968310,1740850239312,-5963.79,0.0002575,2]
[354968311,1740850239323,-500.0,0.0002575,2]
[354968312,1740850239335,-2511.29,0.0002575,2]
[354968313,1740850239346,-500.0,0.0002575,2]
[354968314,1740850239357,-740.88,0.0002575,2]
[354968315,1740850239369,-4983.12,0.0002575,2]
[354968316,1740850239381,-755.48,0.0002575,2]
[354968317,1740850239392,-1032.65,0.0002575,2]
[354968318,1740850239404,-516.44564632,0.0002575,2]
[354968319,1740850239416,-8690.49,0.0002575,2]
[354968320,1740850239428,-500.0,0.0002575,2]
[354968321,1740850239440,-500.0,0.0002575,2]
[354968322,1740850239456,-500.0,0.0002575,2]
[354968323,1740850239471,-1168.59,0.0002575,2]
[354968324,1740850239483,-2770.23,0.0002575,2]
[354968325,1740850239497,-794.1,0.0002575,2]
[354968326,1740850239509,-500.0,0.0002575,2]
[354968327,1740850239519,-1884.28,0.0002575,2]
[354968328,1740850239530,-500.0,0.0002575,2]
[354968329,1740850239540,-2264.37461122,0.0002575,2]
[354968330,1740850239557,-221.23538878,0.0002575,2]
[354968331,1740850239567,-500.0,0.0002575,2]
[354968332,1740850239577,-500.0,0.0002575,2]
[354968333,1740850239587,-500.0,0.0002575,2]
[354968335,1740850239596,-1007.38,0.0002575,2]
[354968336,1740850239605,-500.0,0.0002575,2]
[354968337,1740850239615,-500.0,0.0002575,2]
[354968338,1740850239625,-179156.33,0.0002575,2]
[354968340,1740850240061,-500.0,0.0002575,2]
[354968341,1740850240091,-500.0,0.0002575,2]
[354968342,1740850240117,-500.0,0.0002575,2]
[354968343,1740850240134,-500.0,0.0002575,2]
[354968344,1740850240144,-302.51797588,0.00025751,2]
[354968345,1740850240154,-500.0,0.00025751,2]
[354968346,1740850240163,-500.0,0.00025751,2]
[354968347,1740850240173,-500.0,0.00025751,2]
[354968348,1740850240183,-500.0,0.00025751,2]
[354968349,1740850240193,-500.0,0.00025751,2]
[354968350,1740850240202,-500.0,0.00025751,2]
[354968351,1740850240212,-500.0,0.00025751,2]
[354968352,1740850240221,-501.58548571,0.00025751,2]
[354968353,1740850240231,-503.84917594,0.00025751,2]
[354968355,1740850240241,-500.0,0.00025751,2]
[354968356,1740850240250,-1019.17,0.00025751,2]
[354968358,1740850240260,-500.0,0.00025751,2]
[354968359,1740850240270,-624.44,0.00025751,2]
[354968360,1740850240279,-531.81330631,0.00025751,2]
[354968361,1740850240289,-500.0,0.00025751,2]
[354968362,1740850240299,-500.0,0.00025751,2]
[354968363,1740850240309,-810.59,0.00025751,2]
[354968364,1740850240319,-1008.44,0.00025751,2]
[354968365,1740850240329,-1683.64,0.00025751,2]
[354968366,1740850240339,-500.0,0.00025751,2]
[354968367,1740850240349,-504.10048671,0.00025751,2]
[354968368,1740850240358,-1377.74,0.00025751,2]
[354968369,1740850240368,-500.0,0.00025751,2]
[354968370,1740850240378,-500.0,0.00025751,2]
[354968371,1740850240388,-500.0,0.00025751,2]
[354968372,1740850240398,-594.1,0.00025751,2]
[354968373,1740850240408,-500.0,0.00025751,2]
[354968374,1740850240418,-500.0,0.00025751,2]
[354968375,1740850240428,-703.96,0.00025751,2]
[354968376,1740850240441,-500.0,0.00025751,2]
[354968377,1740850240451,-513.64183561,0.00025751,2]
[354968378,1740850240462,-500.0,0.00025751,2]
[354968379,1740850240472,-500.0,0.00025751,2]
[354968380,1740850240483,-500.0,0.00025751,2]
[354968381,1740850240492,-500.0,0.00025751,2]
[354968382,1740850240502,-688.07,0.00025751,2]
[354968383,1740850240513,-500.0,0.00025751,2]
[354968384,1740850240525,-675.85,0.00025751,2]
[354968385,1740850240536,-500.0,0.00025751,2]
[354968386,1740850240546,-500.0,0.00025751,2]
[354968387,1740850240556,-500.0,0.00025751,2]
[354968388,1740850240566,-500.0,0.00025751,2]
[354968389,1740850240576,-500.0,0.00025751,2]
[354968390,1740850240585,-500.0,0.00025751,2]
[354968391,1740850240596,-500.0,0.00025751,2]
[354968392,1740850240605,-500.0,0.00025751,2]
[354968393,1740850240616,-500.0,0.00025751,2]
[354968394,1740850240626,-401.13243875,0.00025751,2]
[354968395,1740850240636,-500.0,0.00025751,2]
[354968396,1740850240646,-563.07,0.00025751,2]
[354968397,1740850240656,-813.95,0.00025751,2]
[354968398,1740850240665,-500.0,0.00025751,2]
[354968399,1740850240676,-500.0,0.00025751,2]
[354968400,1740850240686,-3004.0,0.00025751,2]
[354968401,1740850240696,-500.0,0.00025751,2]
[354968402,1740850240708,-500.0,0.00025751,2]
[354968403,1740850240718,-500.0,0.00025751,2]
[354968404,1740850240728,-500.0,0.00025751,2]
[354968405,1740850240738,-500.0,0.00025751,2]
[354968406,1740850240747,-500.0,0.00025751,2]
[354968407,1740850240757,-1823.08,0.00025751,2]
[354968408,1740850240767,-500.0,0.00025751,2]
[354968409,1740850240778,-500.0,0.00025751,2]
[354968410,1740850240787,-1881.63,0.00025751,2]
[354968411,1740850240797,-500.0,0.00025751,2]
[354968412,1740850240807,-518.42023982,0.00025751,2]
[354968413,1740850240816,-500.0,0.00025751,2]
[354968414,1740850240826,-500.0,0.00025751,2]
[354968415,1740850240835,-500.0,0.00025751,2]
[354968416,1740850240845,-500.0,0.00025751,2]
[354968417,1740850240854,-500.0,0.00025751,2]
[354968418,1740850240864,-269.18299516,0.00025751,2]
[354968419,1740850240874,-500.0,0.00025751,2]
[354968420,1740850240883,-508.06437309,0.00025751,2]
[354968421,1740850240893,-1174.37,0.00025751,2]
[354968422,1740850240903,-500.0,0.00025751,2]
[354968423,1740850240913,-500.0,0.00025751,2]
[354968424,1740850240923,-500.0,0.00025751,2]
[354968425,1740850240933,-500.0,0.00025751,2]
[354968426,1740850240943,-580.41,0.00025751,2]
[354968427,1740850240955,-500.0,0.00025751,2]
[354968428,1740850240965,-500.0,0.00025751,2]
[354968429,1740850240975,-505.1786092,0.00025751,2]
[354968430,1740850240984,-500.0,0.00025751,2]
[354968431,1740850240994,-500.0,0.00025751,2]
[354968432,1740850241003,-500.0,0.00025751,2]
[354968433,1740850241013,-500.0,0.00025751,2]
[354968434,1740850241023,-500.0,0.00025751,2]
[354968435,1740850241033,-500.0,0.00025751,2]
[354968436,1740850241042,-500.0,0.00025751,2]
[354968437,1740850241052,-500.0,0.00025751,2]
[354968438,1740850241062,-521.48031741,0.00025751,2]
[354968439,1740850241071,-500.0,0.00025751,2]
[354968440,1740850241081,-500.0,0.00025751,2]
[354968441,1740850241091,-500.0,0.00025751,2]
[354968442,1740850241100,-777.16,0.00025751,2]
[354968443,1740850241111,-500.0,0.00025751,2]
[354968444,1740850241120,-500.0,0.00025751,2]
[354968445,1740850241130,-500.0,0.00025751,2]
[354968446,1740850241139,-500.0,0.00025751,2]
[354968447,1740850241149,-500.0,0.00025751,2]
[354968448,1740850241158,-500.0,0.00025751,2]
[354968449,1740850241168,-500.0,0.00025751,2]
[354968450,1740850241178,-500.0,0.00025751,2]
[354968451,1740850241188,-500.0,0.00025751,2]
[354968452,1740850241197,-500.0,0.00025751,2]
[354968453,1740850241208,-500.0,0.00025751,2]
[354968454,1740850241218,-500.0,0.00025751,2]
[354968455,1740850241227,-500.0,0.00025751,2]
[354968456,1740850241238,-892.64,0.00025751,2]
[354968457,1740850241248,-503.64646076,0.00025751,2]
[354968458,1740850241257,-500.0,0.00025751,2]
[354968459,1740850241268,-500.0,0.00025751,2]
[354968460,1740850241277,-500.0,0.00025751,2]
[354968461,1740850241287,-500.0,0.00025751,2]
[354968462,1740850241296,-500.0,0.00025751,2]
[354968463,1740850241306,-500.0,0.00025751,2]
[354968464,1740850241315,-542.17733341,0.00025751,2]
[354968465,1740850241325,-500.0,0.00025751,2]
[354968466,1740850241335,-500.0,0.00025751,2]
[354968467,1740850241345,-1321.24,0.00025751,2]
[354968468,1740850241354,-500.0,0.00025751,2]
[354968469,1740850241364,-500.0,0.00025751,2]
[354968470,1740850241374,-876.98,0.00025751,2]
[354968471,1740850241384,-510.43424536,0.00025751,2]
[354968472,1740850241394,-501.89073655,0.00025751,2]
[354968473,1740850241403,-500.0,0.00025751,2]
[354968474,1740850241413,-500.0,0.00025751,2]
[354968475,1740850241423,-2719.88,0.00025751,2]
[354968476,1740850241433,-500.0,0.00025751,2]
[354968477,1740850241443,-500.0,0.00025751,2]
[354968478,1740850241458,-507.39311991,0.00025751,2]
[354968479,1740850241467,-500.0,0.00025751,2]
[354968480,1740850241477,-500.0,0.00025751,2]
[354968481,1740850241487,-500.0,0.00025751,2]
[354968482,1740850241496,-500.0,0.00025751,2]
[354968483,1740850241505,-500.0,0.00025751,2]
[354968484,1740850241515,-500.0,0.00025751,2]
[354968485,1740850241527,-500.0,0.00025751,2]
[354968486,1740850241537,-500.0,0.00025751,2]
[354968487,1740850241547,-500.0,0.00025751,2]
[354968488,1740850241556,-500.0,0.00025751,2]
[354968489,1740850241565,-505.27103851,0.00025751,2]
[354968490,1740850241575,-500.0,0.00025751,2]
[354968491,1740850241585,-500.0,0.00025751,2]
[354968492,1740850241595,-500.0,0.00025751,2]
[354968493,1740850241605,-916.91,0.00025751,2]
[354968494,1740850241615,-500.0,0.00025751,2]
[354968495,1740850241625,-500.0,0.00025751,2]
[354968496,1740850241634,-524.01,0.00025751,2]
[354968497,1740850241644,-3572.76,0.00025751,2]
[354968498,1740850241653,-505.191609,0.00025751,2]
[354968499,1740850241663,-500.0,0.00025751,2]
[354968500,1740850241672,-500.0,0.00025751,2]
[354968501,1740850241682,-500.0,0.00025751,2]
[354968502,1740850241691,-831.37,0.00025751,2]
[354968503,1740850241701,-410.346135,0.00025751,2]
[354968504,1740850241711,-500.0,0.00025751,2]
[354968505,1740850241721,-500.0,0.00025751,2]
[354968506,1740850241731,-266.54341547,0.00025751,2]
[354968507,1740850241741,-500.0,0.00025751,2]
[354968508,1740850241751,-584.07,0.00025751,2]
[354968509,1740850241761,-4612.98,0.00025751,2]
[354968510,1740850241771,-9398.49,0.00025751,2]
[354968511,1740850241780,-1646.92,0.00025751,2]
[354968512,1740850241791,-500.0,0.00025751,2]
[354968513,1740850241807,-504.51595322,0.00025751,2]
[354968514,1740850241817,-500.0,0.00025751,2]
[354968515,1740850241828,-500.0,0.00025751,2]
[354968516,1740850241838,-500.0,0.00025751,2]
[354968517,1740850241848,-518.40513653,0.00025751,2]
[354968518,1740850241858,-2182.38,0.00025751,2]
[354968519,1740850241867,-883.33,0.00025751,2]
[354968520,1740850241877,-500.0,0.00025751,2]
[354968521,1740850241886,-500.0,0.00025751,2]
[354968522,1740850241896,-1037.7,0.00025751,2]
[354968523,1740850241906,-516.64,0.00025751,2]
[354968524,1740850241916,-500.0,0.00025751,2]
[354968525,1740850241925,-500.0,0.00025751,2]
[354968526,1740850241935,-1465.95,0.00025751,2]
[354968527,1740850241944,-738.49,0.00025751,2]
[354968528,1740850241955,-500.0,0.00025751,2]
[354968529,1740850241965,-500.0,0.00025751,2]
[354968530,1740850241974,-500.0,0.00025751,2]
[354968531,1740850241983,-1458.84,0.00025751,2]
[354968532,1740850241993,-500.0,0.00025751,2]
[354968533,1740850242003,-500.0,0.00025751,2]
[354968534,1740850242012,-500.0,0.00025751,2]
[354968535,1740850242022,-1323.64,0.00025751,2]
[354968536,1740850242032,-500.0,0.00025751,2]
[354968537,1740850242042,-591.43,0.00025751,2]
[354968538,1740850242052,-500.0,0.00025751,2]
[354968539,1740850242062,-1411.91,0.00025751,2]
[354968540,1740850242072,-1209.7,0.00025751,2]
[354968541,1740850242081,-500.0,0.00025751,2]
[354968542,1740850242092,-639.39,0.00025751,2]
[354968543,1740850242102,-500.0,0.00025751,2]
[354968544,1740850242111,-500.0,0.00025751,2]
[354968545,1740850242121,-509.33,0.00025751,2]
[354968546,1740850242130,-500.0,0.00025751,2]
[354968547,1740850242140,-1841.61,0.00025751,2]
[354968548,1740850242150,-500.0,0.00025751,2]
[354968549,1740850242160,-500.0,0.00025751,2]
[354968550,1740850242169,-1000.0,0.00025751,2]
[354968551,1740850242179,-500.0,0.00025751,2]
[354968552,1740850242188,-303.67041697,0.00025751,2]
[354968553,1740850242198,-500.0,0.00025751,2]
[354968554,1740850242210,-611.12,0.00025751,2]
[354968555,1740850242219,-5295.68,0.00025751,2]
[354968556,1740850242229,-500.0,0.00025751,2]
[354968557,1740850242238,-500.0,0.00025751,2]
[354968558,1740850242248,-500.0,0.00025751,2]
[354968559,1740850242258,-500.0,0.00025751,2]
[354968560,1740850242267,-529.07032161,0.00025751,2]
[354968561,1740850242277,-500.0,0.00025751,2]
[354968562,1740850242287,-500.0,0.00025751,2]
[354968563,1740850242297,-500.0,0.00025751,2]
[354968564,1740850242307,-406.61527626,0.00025751,2]
[354968565,1740850242317,-500.0,0.00025751,2]
[354968566,1740850242327,-13291.67,0.00025751,2]
[354968567,1740850242337,-500.0,0.00025751,2]
[354968568,1740850242348,-828.82,0.00025751,2]
[354968569,1740850242358,-1520.56,0.00025751,2]
[354968570,1740850242367,-500.0,0.00025751,2]
[354968571,1740850242378,-500.0,0.00025751,2]
[354968572,1740850242387,-500.0,0.00025751,2]
[354968573,1740850242397,-500.0,0.00025751,2]
[354968574,1740850242407,-335.43268638,0.00025751,2]
[354968575,1740850242417,-500.0,0.00025751,2]
[354968576,1740850242427,-786.23,0.00025751,2]
[354968577,1740850242438,-500.0,0.00025751,2]
[354968578,1740850242449,-545.69,0.00025751,2]
[354968579,1740850242461,-500.0,0.00025751,2]
[354968580,1740850242471,-502.81663997,0.00025751,2]
[354968581,1740850242482,-500.0,0.00025751,2]
[354968582,1740850242491,-500.0,0.00025751,2]
[354968583,1740850242500,-500.0,0.00025751,2]
[354968584,1740850242510,-500.0,0.00025751,2]
[354968585,1740850242520,-500.0,0.00025751,2]
[354968586,1740850242530,-500.0,0.00025751,2]
[354968587,1740850242539,-500.0,0.00025751,2]
[354968588,1740850242549,-500.0,0.00025751,2]
[354968589,1740850242559,-500.0,0.00025751,2]
[354968590,1740850242568,-500.0,0.00025751,2]
[354968591,1740850242578,-785.17,0.00025751,2]
[354968592,1740850242587,-500.0,0.00025751,2]
[354968593,1740850242597,-500.0,0.00025751,2]
[354968594,1740850242606,-609.79,0.00025751,2]
[354968595,1740850242616,-500.0,0.00025751,2]
[354968596,1740850242626,-500.0,0.00025773,2]
[354968597,1740850242636,-500.0,0.00025773,2]
[354968598,1740850242645,-500.0,0.00025773,2]
[354968599,1740850242655,-219.88193823,0.00025773,2]
[354968600,1740850242665,-500.0,0.00025773,2]
[354968601,1740850242675,-500.0,0.00025773,2]
[354968602,1740850242684,-500.0,0.00025773,2]
[354968603,1740850242694,-500.0,0.00025773,2]
[354968604,1740850242705,-500.0,0.00025773,2]
[354968605,1740850242716,-500.0,0.00025773,2]
[354968606,1740850242726,-500.0,0.00025773,2]
[354968607,1740850242736,-2024.51,0.00025843,2]
[354968608,1740850242746,-638.30156786,0.000259,4]
[354968609,1740850242755,-7209.0,0.00026,2]
[354968610,1740850242765,-1000.02,0.00026022,2]
[354968611,1740850242775,-2627.4,0.00026022,2]
[354968612,1740850242786,-8417.99,0.00026023,2]
[354968613,1740850242796,-2231.37,0.00026023,2]
[354968614,1740850242806,-1000.0,0.00026023,5]
[354968615,1740850242815,-1265.28,0.00026023,2]
[354968616,1740850242825,-745.33,0.00026023,2]
[354968617,1740850242835,-788.16,0.00026023,2]
[354968618,1740850242844,-500.0,0.00026023,2]
[354968620,1740850242854,-500.0,0.00026023,2]
[354968621,1740850242863,-3225.88,0.00026023,2]
[354968622,1740850242873,-500.0,0.00026024,2]
[354968623,1740850242883,-500.0,0.00026024,2]
[354968624,1740850242893,-500.0,0.00026024,2]
[354968626,1740850242902,-500.71,0.00026024,2]
[354968627,1740850242912,-777.04,0.00026024,2]
[354968628,1740850242921,-500.0,0.00026024,2]
[354968629,1740850242931,-500.0,0.00026024,2]
[354968630,1740850242941,-1548.02,0.00026024,2]
[354968631,1740850242951,-1563.09,0.00026024,2]
[354968632,1740850242963,-500.0,0.00026024,2]
[354968633,1740850242972,-500.0,0.00026024,2]
[354968634,1740850242982,-500.0,0.00026024,2]
[354968635,1740850242992,-500.0,0.00026024,2]
[354968636,1740850243002,-961.87,0.00026024,2]
[354968637,1740850243011,-500.0,0.00026024,2]
[354968638,1740850243021,-581.91,0.00026024,2]
[354968639,1740850243031,-500.0,0.00026024,2]
[354968640,1740850243041,-500.0,0.00026024,2]
[354968641,1740850243051,-500.0,0.00026024,2]
[354968642,1740850243061,-828.64,0.00026024,2]
[354968643,1740850243070,-500.0,0.00026024,2]
[354968644,1740850243080,-1057.51,0.00026024,2]
[354968645,1740850243089,-500.0,0.00026024,2]
[354968646,1740850243099,-500.0,0.00026024,2]
[354968647,1740850243108,-500.0,0.00026024,2]
[354968648,1740850243118,-1728.36,0.00026024,2]
[354968649,1740850243128,-1174.44,0.00026024,2]
[354968650,1740850243137,-677.44,0.00026024,2]
[354968651,1740850243147,-1072.33,0.00026024,2]
[354968652,1740850243157,-500.0,0.00026024,2]
[354968653,1740850243167,-2496.93,0.00026024,2]
[354968654,1740850243177,-564.13,0.00026024,2]
[354968655,1740850243186,-1529.5,0.00026024,2]
[354968656,1740850243197,-500.0,0.00026024,2]
[354968657,1740850243207,-1626.72,0.00026024,2]
[354968658,1740850243217,-948.97,0.00026024,2]
[354968659,1740850243226,-1821.85,0.00026024,2]
[354968660,1740850243236,-2334.43,0.00026024,2]
[354968661,1740850243245,-1004.85,0.00026024,2]
[354968662,1740850243256,-1198.71,0.00026024,2]
[354968663,1740850243266,-791.77,0.00026024,2]
[354968673,1740850243434,-1185.64,0.00026024,2]
[354968674,1740850243478,-500.0,0.00026024,2]
[354968675,1740850243488,-1301.17,0.00026024,2]
[354968676,1740850243499,-500.0,0.00026024,2]
[354968677,1740850243509,-500.0,0.00026024,2]
[354968678,1740850243519,-500.0,0.00026024,2]